[Event "*** Titled Tuesday Blitz"]
[Site "Chess.com"]
[Date "2018.09.04"]
[Round "8"]
[White "GMWSO"]
[Black "Arash_Tahbaz"]
[Result "1/2-1/2"]
[WhiteElo "2956"]
[BlackElo "2767"]
[TimeControl "180+2"]
[EndTime "15:26:49 PDT"]
[Termination "Game drawn by agreement"]

1. Nf3 {[%clk 0:03:01.9]} 1... Nf6 {[%clk 0:03:00.5]} 2. c4 {[%clk 0:02:59.1]}
2... e6 {[%clk 0:03:01.3]} 3. b3 {[%clk 0:02:59.4]} 3... d5 {[%clk 0:03:02]} 4.
Bb2 {[%clk 0:03:00.7]} 4... Be7 {[%clk 0:03:02.5]} 5. e3 {[%clk 0:03:01.3]} 5...
O-O {[%clk 0:03:03.4]} 6. Nc3 {[%clk 0:03:02.8]} 6... c5 {[%clk 0:02:57.9]} 7.
cxd5 {[%clk 0:03:03.5]} 7... Nxd5 {[%clk 0:02:57.6]} 8. Qc2 {[%clk 0:03:04.5]}
8... Nc6 {[%clk 0:02:57.6]} 9. a3 {[%clk 0:03:01.9]} 9... b6 {[%clk 0:02:56.4]}
10. h4 {[%clk 0:02:55.9]} 10... h6 {[%clk 0:02:35.9]} 11. O-O-O {[%clk
0:02:44.1]} 11... Bb7 {[%clk 0:02:32.1]} 12. Ng5 {[%clk 0:02:40.6]} 12... Nf6
{[%clk 0:02:20.8]} 13. Nce4 {[%clk 0:02:09.6]} 13... Re8 {[%clk 0:01:45.4]} 14.
Bc4 {[%clk 0:01:45]} 14... Nxe4 {[%clk 0:01:32.2]} 15. Qxe4 {[%clk 0:01:41.6]}
15... Bxg5 {[%clk 0:01:32.9]} 16. hxg5 {[%clk 0:01:43.5]} 16... Qxg5 {[%clk
0:01:31.8]} 17. f4 {[%clk 0:01:22.7]} 17... Qf5 {[%clk 0:01:16.9]} 18. Qxf5
{[%clk 0:01:09.2]} 18... exf5 {[%clk 0:01:18.8]} 19. Rh5 {[%clk 0:01:10]} 19...
Bc8 {[%clk 0:01:06.4]} 20. Bd5 {[%clk 0:01:05.6]} 20... Bd7 {[%clk 0:01:07.5]}
21. Rdh1 {[%clk 0:01:05.1]} 21... Rac8 {[%clk 0:01:05]} 22. R1h3 {[%clk
0:00:49.1]} 22... Ne7 {[%clk 0:00:51.4]} 23. Bc4 {[%clk 0:00:46.6]} 23... Ng6
{[%clk 0:00:46.1]} 24. Bd3 {[%clk 0:00:40.8]} 24... Be6 {[%clk 0:00:44.3]} 25.
Bxf5 {[%clk 0:00:40.1]} 25... Bxf5 {[%clk 0:00:44.6]} 26. Rxf5 {[%clk 0:00:42]}
26... Ne7 {[%clk 0:00:44.7]} 27. Rfh5 {[%clk 0:00:41.1]} 27... f6 {[%clk
0:00:43.5]} 28. g4 {[%clk 0:00:41.2]} 28... Kf7 {[%clk 0:00:41.9]} 29. g5 {[%clk
0:00:36.1]} 29... hxg5 {[%clk 0:00:42.4]} 30. fxg5 {[%clk 0:00:38]} 30... f5
{[%clk 0:00:36.7]} 31. g6+ {[%clk 0:00:39]} 31... Kxg6 {[%clk 0:00:35.9]} 32.
Rh7 {[%clk 0:00:39.4]} 32... Rg8 {[%clk 0:00:34.5]} 33. Rxg7+ {[%clk 0:00:39.8]}
33... Rxg7 {[%clk 0:00:35.6]} 34. Rg3+ {[%clk 0:00:41.7]} 34... Kf7 {[%clk
0:00:36.9]} 35. Rxg7+ {[%clk 0:00:43.6]} 35... Ke6 {[%clk 0:00:38.1]} 36. Rh7
{[%clk 0:00:42.9]} 36... Rg8 {[%clk 0:00:36.3]} 37. Kc2 {[%clk 0:00:43.8]} 37...
Nc6 {[%clk 0:00:35.3]} 38. Rh6+ {[%clk 0:00:43.5]} 38... Kd7 {[%clk 0:00:35.7]}
39. Rf6 {[%clk 0:00:44.5]} 39... Rg5 {[%clk 0:00:36.6]} 40. Bc3 {[%clk 0:00:42]}
40... Rh5 {[%clk 0:00:36.4]} 41. Rf7+ {[%clk 0:00:42.3]} 41... Ke6 {[%clk
0:00:35.6]} 42. Rf6+ {[%clk 0:00:43.1]} 42... Kd7 {[%clk 0:00:33.8]} 43. b4
{[%clk 0:00:44.3]} 43... cxb4 {[%clk 0:00:33.4]} 44. axb4 {[%clk 0:00:46.2]}
44... b5 {[%clk 0:00:35]} 45. Rf7+ {[%clk 0:00:47.3]} 45... Ke6 {[%clk
0:00:35.6]} 46. Rb7 {[%clk 0:00:48]} 46... f4 {[%clk 0:00:34.2]} 47. exf4 {[%clk
0:00:49.9]} 47... Rf5 {[%clk 0:00:33.7]} 48. Kd3 {[%clk 0:00:45.1]} 48... Rxf4
{[%clk 0:00:32.3]} 49. Rxb5 {[%clk 0:00:46]} 49... Kd7 {[%clk 0:00:33.4]} 50.
Rd5+ {[%clk 0:00:45.4]} 50... Ke6 {[%clk 0:00:33]} 51. Rb5 {[%clk 0:00:45]}
51... Kd7 {[%clk 0:00:34.6]} 52. Ke3 {[%clk 0:00:44.9]} 52... Rh4 {[%clk
0:00:33]} 53. Rd5+ {[%clk 0:00:44.5]} 53... Ke6 {[%clk 0:00:33.4]} 54. Rb5
{[%clk 0:00:44.8]} 54... Kd7 {[%clk 0:00:34.7]} 55. Kd3 {[%clk 0:00:39.3]} 55...
a6 {[%clk 0:00:31]} 56. Rb7+ {[%clk 0:00:26.8]} 56... Kc8 {[%clk 0:00:30.4]} 57.
Rb6 {[%clk 0:00:16.3]} 57... Kc7 {[%clk 0:00:31.5]} 58. Rxa6 {[%clk 0:00:17.7]}
58... Nxb4+ {[%clk 0:00:32]} 59. Bxb4 {[%clk 0:00:18.9]} 59... Rxb4 {[%clk
0:00:33.9]} 60. Ke3 {[%clk 0:00:18.8]} 60... Rh4 {[%clk 0:00:34.5]} 61. Ra5
{[%clk 0:00:18.5]} 61... Kd6 {[%clk 0:00:34.3]} 62. Kd3 {[%clk 0:00:18.5]} 62...
Rg4 {[%clk 0:00:33.5]} 63. Kc3 {[%clk 0:00:19.6]} 63... Rh4 {[%clk 0:00:34.8]}
64. Rf5 {[%clk 0:00:20.3]} 64... Kc6 {[%clk 0:00:35.2]} 65. Rf3 {[%clk 0:00:21]}
65... Kd5 {[%clk 0:00:35]} 66. Rd3+ {[%clk 0:00:21.9]} 66... Kc5 {[%clk
0:00:36.4]} 67. Rd8 {[%clk 0:00:22.8]} 67... Kc6 {[%clk 0:00:36.1]} 68. d3
{[%clk 0:00:23.1]} 68... Rg4 {[%clk 0:00:36.2]} 69. d4 {[%clk 0:00:24]} 69...
Rg1 {[%clk 0:00:37]} 70. Rh8 {[%clk 0:00:18.4]} 70... Rc1+ {[%clk 0:00:36.3]}
71. Kd3 {[%clk 0:00:19.8]} 71... Rd1+ {[%clk 0:00:36.5]} 72. Ke3 {[%clk
0:00:19.7]} 72... Kd5 {[%clk 0:00:34.7]} 73. Rd8+ {[%clk 0:00:18]} 73... Ke6
{[%clk 0:00:35.7]} 74. Re8+ {[%clk 0:00:18]} 74... Kd5 {[%clk 0:00:36.3]} 75.
Re5+ {[%clk 0:00:16.6]} 75... Kd6 {[%clk 0:00:37.4]} 76. Rh5 {[%clk 0:00:17.6]}
76... Re1+ {[%clk 0:00:36.8]} 77. Kd2 {[%clk 0:00:18.8]} 77... Rg1 {[%clk
0:00:38.1]} 78. Kc3 {[%clk 0:00:17.1]} 78... Rc1+ {[%clk 0:00:38.5]} 79. Kd3
{[%clk 0:00:16.9]} 79... Rd1+ {[%clk 0:00:38]} 80. Ke3 {[%clk 0:00:18.2]} 80...
Re1+ {[%clk 0:00:38.9]} 81. Kd2 {[%clk 0:00:19.5]} 81... Ra1 {[%clk 0:00:39.9]}
1/2-1/2

[Event "*** Titled Tuesday Blitz"]
[Site "Chess.com"]
[Date "2018.09.04"]
[Round "8"]
[White "51616516516"]
[Black "OglazaOskar2005"]
[Result "0-1"]
[WhiteElo "2196"]
[BlackElo "2309"]
[TimeControl "180+2"]
[EndTime "15:26:58 PDT"]
[Termination "OglazaOskar2005 won by resignation"]

1. d4 {[%clk 0:03:00.1]} 1... Nf6 {[%clk 0:03:00.3]} 2. c4 {[%clk 0:03:00.8]}
2... g6 {[%clk 0:03:01.2]} 3. Nf3 {[%clk 0:03:01.7]} 3... Bg7 {[%clk 0:03:01.6]}
4. g3 {[%clk 0:03:02.9]} 4... O-O {[%clk 0:03:02.9]} 5. Bg2 {[%clk 0:03:04.3]}
5... d5 {[%clk 0:03:04.6]} 6. cxd5 {[%clk 0:03:04.7]} 6... Nxd5 {[%clk
0:03:05.5]} 7. O-O {[%clk 0:03:05.5]} 7... Nb6 {[%clk 0:03:06.1]} 8. Nc3 {[%clk
0:03:04.2]} 8... Nc6 {[%clk 0:03:07.3]} 9. d5 {[%clk 0:03:02.4]} 9... Na5 {[%clk
0:03:07.8]} 10. Qc2 {[%clk 0:03:02.8]} 10... Nac4 {[%clk 0:02:10.8]} 11. b3
{[%clk 0:02:52.7]} 11... Nd6 {[%clk 0:01:59.4]} 12. Bb2 {[%clk 0:02:29.1]} 12...
Bf5 {[%clk 0:01:57.7]} 13. Qd2 {[%clk 0:02:22]} 13... e6 {[%clk 0:01:24.6]} 14.
e4 {[%clk 0:01:03.7]} 14... Nxe4 {[%clk 0:01:13.6]} 15. Nxe4 {[%clk 0:00:49.3]}
15... Bxb2 {[%clk 0:01:14.2]} 16. Qxb2 {[%clk 0:00:48.9]} 16... Bxe4 {[%clk
0:01:15.2]} 17. dxe6 {[%clk 0:00:49.7]} 17... fxe6 {[%clk 0:01:16.4]} 18. Qe2
{[%clk 0:00:36.9]} 18... Qd5 {[%clk 0:01:13.4]} 19. Nh4 {[%clk 0:00:34.4]} 19...
Bxg2 {[%clk 0:01:12.8]} 20. Nxg2 {[%clk 0:00:36.3]} 20... Rae8 {[%clk
0:01:12.1]} 21. Nf4 {[%clk 0:00:35.5]} 21... Qf5 {[%clk 0:01:10.2]} 22. Rac1
{[%clk 0:00:33.3]} 22... e5 {[%clk 0:01:08.7]} 23. Ng2 {[%clk 0:00:27.4]} 23...
c6 {[%clk 0:01:08.7]} 24. Ne3 {[%clk 0:00:27.8]} 24... Qe6 {[%clk 0:01:09.3]}
25. Rcd1 {[%clk 0:00:23.2]} 25... Nd5 {[%clk 0:01:07.3]} 26. Nxd5 {[%clk
0:00:24.1]} 26... cxd5 {[%clk 0:01:09.2]} 27. Qb5 {[%clk 0:00:24.5]} 27... d4
{[%clk 0:01:10]} 28. Qxb7 {[%clk 0:00:22.7]} 28... a5 {[%clk 0:01:10.8]} 29. Qe4
{[%clk 0:00:22.1]} 29... a4 {[%clk 0:01:09.5]} 30. bxa4 {[%clk 0:00:14.1]} 30...
Qxa2 {[%clk 0:01:10.4]} 31. Ra1 {[%clk 0:00:13]} 31... Qe6 {[%clk 0:01:10.5]}
32. a5 {[%clk 0:00:13.7]} 32... Qf5 {[%clk 0:01:11.9]} 33. Qd5+ {[%clk
0:00:13.2]} 33... Qf7 {[%clk 0:01:10.7]} 34. Qe4 {[%clk 0:00:11.3]} 34... Qf3
{[%clk 0:01:07.9]} 35. Qxf3 {[%clk 0:00:06.9]} 35... Rxf3 {[%clk 0:01:09.8]} 36.
a6 {[%clk 0:00:07.5]} 36... Rf7 {[%clk 0:01:04.7]} 37. Rfe1 {[%clk 0:00:07.6]}
37... d3 {[%clk 0:01:00.2]} 38. a7 {[%clk 0:00:07.2]} 38... Ra8 {[%clk 0:01:01]}
39. Rxe5 {[%clk 0:00:07.6]} 39... Raxa7 {[%clk 0:01:02.4]} 40. Rxa7 {[%clk
0:00:08.2]} 40... Rxa7 {[%clk 0:01:04.3]} 41. Rd5 {[%clk 0:00:10.1]} 41... Ra3
{[%clk 0:01:04.8]} 42. Kg2 {[%clk 0:00:11.2]} 42... Kf7 {[%clk 0:01:05.6]} 43.
Kf3 {[%clk 0:00:09]} 43... Ke6 {[%clk 0:01:05.6]} 44. Rd8 {[%clk 0:00:09.4]}
44... Ke7 {[%clk 0:00:49.6]} 45. Rd4 {[%clk 0:00:09.3]} 45... d2+ {[%clk
0:00:40.9]} 46. Ke2 {[%clk 0:00:09.9]} 46... Ra1 {[%clk 0:00:42]} 47. Rxd2
{[%clk 0:00:10]} 47... Rh1 {[%clk 0:00:42.9]} 48. h4 {[%clk 0:00:11]} 48... Kf6
{[%clk 0:00:44.4]} 49. Kf3 {[%clk 0:00:12]} 49... Ra1 {[%clk 0:00:44.7]} 50. Rb2
{[%clk 0:00:12.7]} 50... h5 {[%clk 0:00:46]} 51. Rb6+ {[%clk 0:00:11]} 51... Kg7
{[%clk 0:00:47.2]} 52. Rb4 {[%clk 0:00:09.6]} 52... Ra3+ {[%clk 0:00:48.2]} 53.
Kf4 {[%clk 0:00:10.8]} 53... Ra6 {[%clk 0:00:47.1]} 54. Rb2 {[%clk 0:00:06.3]}
54... Rf6+ {[%clk 0:00:48.4]} 55. Ke4 {[%clk 0:00:06.3]} 55... Kh6 {[%clk
0:00:49.6]} 56. f4 {[%clk 0:00:06.1]} 56... Re6+ {[%clk 0:00:50.9]} 57. Kf3
{[%clk 0:00:07.3]} 57... Rd6 {[%clk 0:00:52.1]} 58. Rb3 {[%clk 0:00:08.2]} 58...
Kg7 {[%clk 0:00:52.7]} 59. Ke4 {[%clk 0:00:09.1]} 59... Kf6 {[%clk 0:00:53.7]}
60. Ra3 {[%clk 0:00:07.9]} 60... Re6+ {[%clk 0:00:54.9]} 61. Kd5 {[%clk
0:00:08.4]} 61... Rb6 {[%clk 0:00:55.9]} 62. Rc3 {[%clk 0:00:08.9]} 62... Kf5
{[%clk 0:00:56]} 63. Kc5 {[%clk 0:00:04.3]} 63... Rb1 {[%clk 0:00:54.5]} 64. Kd6
{[%clk 0:00:04.8]} 64... Re1 {[%clk 0:00:52.2]} 65. Rd3 {[%clk 0:00:03.1]} 65...
Kg4 {[%clk 0:00:52.5]} 66. Rc3 {[%clk 0:00:04]} 66... Rg1 {[%clk 0:00:53.1]} 67.
Ke6 {[%clk 0:00:04.9]} 67... Rxg3 {[%clk 0:00:54.1]} 68. Rxg3+ {[%clk
0:00:04.2]} 68... Kxg3 {[%clk 0:00:56]} 69. Kf6 {[%clk 0:00:06]} 69... Kxf4
{[%clk 0:00:57.2]} 70. Kxg6 {[%clk 0:00:06.9]} 70... Kg4 {[%clk 0:00:59.1]} 71.
Kf6 {[%clk 0:00:07.6]} 71... Kxh4 {[%clk 0:01:01]} 72. Ke5 {[%clk 0:00:08.3]}
72... Kg3 {[%clk 0:01:01.4]} 73. Ke4 {[%clk 0:00:09.7]} 73... h4 {[%clk
0:01:03]} 0-1

[Event "*** Titled Tuesday Blitz"]
[Site "Chess.com"]
[Date "2018.09.04"]
[Round "8"]
[White "evgenysharapov"]
[Black "Korchmar_Vasiliy"]
[Result "0-1"]
[WhiteElo "2435"]
[BlackElo "2649"]
[TimeControl "180+2"]
[EndTime "15:27:35 PDT"]
[Termination "Korchmar_Vasiliy won on time"]

1. e4 {[%clk 0:03:01.9]} 1... c5 {[%clk 0:03:01.2]} 2. Nf3 {[%clk 0:03:02.1]}
2... e6 {[%clk 0:03:02.6]} 3. d4 {[%clk 0:03:02.5]} 3... cxd4 {[%clk 0:03:04.5]}
4. Nxd4 {[%clk 0:03:03.5]} 4... a6 {[%clk 0:03:06]} 5. Bd3 {[%clk 0:03:03.8]}
5... Nf6 {[%clk 0:03:07.2]} 6. O-O {[%clk 0:03:04]} 6... Qc7 {[%clk 0:03:08.5]}
7. Qe2 {[%clk 0:03:03.8]} 7... d6 {[%clk 0:03:09.9]} 8. c4 {[%clk 0:03:04.2]}
8... g6 {[%clk 0:03:10.5]} 9. Nc3 {[%clk 0:03:01.1]} 9... Bg7 {[%clk 0:03:11.5]}
10. Be3 {[%clk 0:03:01.4]} 10... O-O {[%clk 0:03:12.6]} 11. f3 {[%clk 0:03:02]}
11... b6 {[%clk 0:03:13.8]} 12. Qf2 {[%clk 0:03:02.2]} 12... Bb7 {[%clk
0:03:14.6]} 13. Rfd1 {[%clk 0:03:02.4]} 13... Nbd7 {[%clk 0:03:15.6]} 14. Rac1
{[%clk 0:03:02.6]} 14... Rfe8 {[%clk 0:03:08.6]} 15. Bf1 {[%clk 0:03:02.6]}
15... Rac8 {[%clk 0:02:59.8]} 16. b4 {[%clk 0:03:02.2]} 16... Qb8 {[%clk
0:02:48.5]} 17. Nb3 {[%clk 0:02:54.7]} 17... Ba8 {[%clk 0:02:33.2]} 18. Na4
{[%clk 0:02:33.7]} 18... d5 {[%clk 0:02:15.7]} 19. exd5 {[%clk 0:02:31]} 19...
exd5 {[%clk 0:02:16.3]} 20. c5 {[%clk 0:02:25.7]} 20... bxc5 {[%clk 0:02:13.9]}
21. bxc5 {[%clk 0:02:18.1]} 21... Ne5 {[%clk 0:01:13.9]} 22. Nb6 {[%clk
0:02:10.6]} 22... Neg4 {[%clk 0:01:07.2]} 23. fxg4 {[%clk 0:02:10.8]} 23... Nxg4
{[%clk 0:01:09.1]} 24. Qg3 {[%clk 0:02:06.1]} 24... Nxe3 {[%clk 0:00:59.3]} 25.
Nxc8 {[%clk 0:01:40.2]} 25... Be5 {[%clk 0:00:59.5]} 26. Qh3 {[%clk 0:01:33.6]}
26... Nxd1 {[%clk 0:00:56.7]} 27. Rxd1 {[%clk 0:01:22.4]} 27... Rxc8 {[%clk
0:00:55.7]} 28. Bxa6 {[%clk 0:01:17.4]} 28... Re8 {[%clk 0:00:52.8]} 29. Bd3
{[%clk 0:01:05.1]} 29... Qa7 {[%clk 0:00:44.4]} 30. Bb5 {[%clk 0:00:52.2]} 30...
Rb8 {[%clk 0:00:40.2]} 31. a4 {[%clk 0:00:51.9]} 31... Qc7 {[%clk 0:00:30.2]}
32. g3 {[%clk 0:00:36.3]} 32... h5 {[%clk 0:00:30.7]} 33. Qf1 {[%clk 0:00:33.9]}
33... h4 {[%clk 0:00:20.8]} 34. gxh4 {[%clk 0:00:22.6]} 34... Bxh2+ {[%clk
0:00:22.7]} 35. Kh1 {[%clk 0:00:23.1]} 35... Be5 {[%clk 0:00:15.3]} 36. Nd4
{[%clk 0:00:21]} 36... Qe7 {[%clk 0:00:14.3]} 37. Qf2 {[%clk 0:00:21.1]} 37...
Qxc5 {[%clk 0:00:13.6]} 38. Qe3 {[%clk 0:00:19.7]} 38... Bg7 {[%clk 0:00:08]}
39. Kh2 {[%clk 0:00:18.3]} 39... Qd6+ {[%clk 0:00:06.2]} 40. Kh1 {[%clk
0:00:17.5]} 40... Qf6 {[%clk 0:00:07.2]} 41. Qg3 {[%clk 0:00:14.6]} 41... Rc8
{[%clk 0:00:06.7]} 42. h5 {[%clk 0:00:14]} 42... gxh5 {[%clk 0:00:06.4]} 43. Qh3
{[%clk 0:00:12.5]} 43... Rd8 {[%clk 0:00:04.5]} 44. Qxh5 {[%clk 0:00:12.8]}
44... Bb7 {[%clk 0:00:03.6]} 45. a5 {[%clk 0:00:13]} 45... Kf8 {[%clk
0:00:03.8]} 46. a6 {[%clk 0:00:13.2]} 46... Bxa6 {[%clk 0:00:04.7]} 47. Bxa6
{[%clk 0:00:13.7]} 47... Qxa6 {[%clk 0:00:06.6]} 48. Nf5 {[%clk 0:00:13.9]}
48... Qg6 {[%clk 0:00:06.2]} 49. Qxg6 {[%clk 0:00:12.4]} 49... fxg6 {[%clk
0:00:08.1]} 50. Nxg7 {[%clk 0:00:12.4]} 50... Kxg7 {[%clk 0:00:10]} 51. Kg2
{[%clk 0:00:13.7]} 51... Kf6 {[%clk 0:00:10.9]} 52. Kf3 {[%clk 0:00:14.6]} 52...
Kf5 {[%clk 0:00:11.1]} 53. Ra1 {[%clk 0:00:13.4]} 53... Rb8 {[%clk 0:00:08.8]}
54. Ra3 {[%clk 0:00:10.4]} 54... Rb4 {[%clk 0:00:09.2]} 55. Rd3 {[%clk
0:00:10.4]} 55... Ke5 {[%clk 0:00:07.8]} 56. Re3+ {[%clk 0:00:10.4]} 56... Re4
{[%clk 0:00:09]} 57. Ra3 {[%clk 0:00:11.1]} 57... g5 {[%clk 0:00:10.5]} 58. Ra8
{[%clk 0:00:11]} 58... Rf4+ {[%clk 0:00:10.7]} 59. Ke3 {[%clk 0:00:10.4]} 59...
d4+ {[%clk 0:00:09.6]} 60. Kd3 {[%clk 0:00:11.6]} 60... Rf3+ {[%clk 0:00:10.9]}
61. Ke2 {[%clk 0:00:12.5]} 61... Re3+ {[%clk 0:00:08.2]} 62. Kd2 {[%clk
0:00:13.2]} 62... Rh3 {[%clk 0:00:04.6]} 63. Re8+ {[%clk 0:00:10.7]} 63... Kf4
{[%clk 0:00:05.9]} 64. Rf8+ {[%clk 0:00:11.4]} 64... Kg4 {[%clk 0:00:06.7]} 65.
Rd8 {[%clk 0:00:11.6]} 65... d3 {[%clk 0:00:06]} 66. Rd4+ {[%clk 0:00:11.7]}
66... Kf5 {[%clk 0:00:05.5]} 67. Rd5+ {[%clk 0:00:11.6]} 67... Kf4 {[%clk
0:00:05.7]} 68. Rd4+ {[%clk 0:00:12.1]} 68... Kf5 {[%clk 0:00:04.9]} 69. Rd5+
{[%clk 0:00:12.6]} 69... Kg6 {[%clk 0:00:05.5]} 70. Rd8 {[%clk 0:00:09.1]} 70...
Kh5 {[%clk 0:00:06.4]} 71. Rd5 {[%clk 0:00:07.9]} 71... Rf3 {[%clk 0:00:06.7]}
72. Rc5 {[%clk 0:00:04.9]} 72... Kh4 {[%clk 0:00:07.5]} 0-1

[Event "*** Titled Tuesday Blitz"]
[Site "Chess.com"]
[Date "2018.09.04"]
[Round "8"]
[White "timator"]
[Black "biostatistician"]
[Result "0-1"]
[WhiteElo "2408"]
[BlackElo "2475"]
[TimeControl "180+2"]
[EndTime "15:28:04 PDT"]
[Termination "biostatistician won by resignation"]

1. Nf3 {[%clk 0:03:01.9]} 1... Nf6 {[%clk 0:03:00.2]} 2. g3 {[%clk 0:03:02.4]}
2... g6 {[%clk 0:03:02.1]} 3. Bg2 {[%clk 0:03:03.5]} 3... Bg7 {[%clk 0:03:04]}
4. O-O {[%clk 0:03:05]} 4... O-O {[%clk 0:03:05.9]} 5. d4 {[%clk 0:03:06.3]}
5... b6 {[%clk 0:03:07.3]} 6. c4 {[%clk 0:03:07.3]} 6... Bb7 {[%clk 0:03:08.5]}
7. Nc3 {[%clk 0:03:08.6]} 7... Ne4 {[%clk 0:03:09.2]} 8. Qc2 {[%clk 0:02:53.6]}
8... Nxc3 {[%clk 0:03:10.4]} 9. Qxc3 {[%clk 0:02:55.5]} 9... c5 {[%clk
0:03:10.6]} 10. Be3 {[%clk 0:02:55.3]} 10... Nc6 {[%clk 0:03:10.8]} 11. Qd2
{[%clk 0:02:55.2]} 11... Nxd4 {[%clk 0:03:09.2]} 12. Nxd4 {[%clk 0:02:55.4]}
12... Bxg2 {[%clk 0:03:11.1]} 13. Kxg2 {[%clk 0:02:57.2]} 13... cxd4 {[%clk
0:03:12.5]} 14. Bxd4 {[%clk 0:02:58.8]} 14... d6 {[%clk 0:03:06.7]} 15. Bxg7
{[%clk 0:02:58]} 15... Kxg7 {[%clk 0:03:08.6]} 16. b3 {[%clk 0:02:59.9]} 16...
Qc7 {[%clk 0:03:08.8]} 17. Qd4+ {[%clk 0:02:59.1]} 17... f6 {[%clk 0:03:09.3]}
18. h4 {[%clk 0:03:00.3]} 18... Qc5 {[%clk 0:03:10.3]} 19. Rad1 {[%clk
0:03:01.4]} 19... Qxd4 {[%clk 0:03:09.9]} 20. Rxd4 {[%clk 0:03:02]} 20... Rfc8
{[%clk 0:03:11.2]} 21. Rfd1 {[%clk 0:02:55.9]} 21... Rc5 {[%clk 0:03:11.7]} 22.
Rd5 {[%clk 0:02:57.1]} 22... Rac8 {[%clk 0:03:12.7]} 23. Rxc5 {[%clk 0:02:57.2]}
23... bxc5 {[%clk 0:03:13.7]} 24. Rd5 {[%clk 0:02:58.8]} 24... a5 {[%clk
0:03:13.4]} 25. Rd3 {[%clk 0:02:51]} 25... Ra8 {[%clk 0:03:09.5]} 26. Kf3 {[%clk
0:02:44.7]} 26... Kf7 {[%clk 0:03:07.3]} 27. Ke4 {[%clk 0:02:40.9]} 27... a4
{[%clk 0:03:04.7]} 28. f4 {[%clk 0:02:34.4]} 28... axb3 {[%clk 0:03:05.4]} 29.
axb3 {[%clk 0:02:35.8]} 29... Ra2 {[%clk 0:03:07]} 30. Kf3 {[%clk 0:02:36.6]}
30... h5 {[%clk 0:03:00]} 31. e4 {[%clk 0:02:34]} 31... Rb2 {[%clk 0:02:59.7]}
32. Re3 {[%clk 0:02:34.9]} 32... Ke6 {[%clk 0:02:53.2]} 33. Rd3 {[%clk
0:02:36.1]} 33... f5 {[%clk 0:02:46.9]} 34. Re3 {[%clk 0:02:34.3]} 34... Kd7
{[%clk 0:02:36.5]} 35. Rd3 {[%clk 0:02:25.4]} 35... Kc6 {[%clk 0:02:35.4]} 36.
Re3 {[%clk 0:02:26]} 36... Kd7 {[%clk 0:02:30.6]} 37. Rd3 {[%clk 0:02:26.1]}
37... Rb1 {[%clk 0:02:27.7]} 38. Re3 {[%clk 0:02:27.3]} 38... Rd1 {[%clk
0:02:26.6]} 39. Rc3 {[%clk 0:02:23.9]} 39... e6 {[%clk 0:02:26.8]} 40. Re3
{[%clk 0:02:23.3]} 40... Rd4 {[%clk 0:02:26.7]} 41. e5 {[%clk 0:01:59.3]} 41...
d5 {[%clk 0:02:27.7]} 42. Rc3 {[%clk 0:02:00.5]} 42... Kc6 {[%clk 0:02:26.3]}
43. Ke3 {[%clk 0:01:59.3]} 43... Re4+ {[%clk 0:02:26.1]} 44. Kf3 {[%clk
0:01:59.9]} 44... Rd4 {[%clk 0:02:24.1]} 45. Ke2 {[%clk 0:01:57.5]} 45... Kb6
{[%clk 0:02:20]} 46. cxd5 {[%clk 0:01:55.7]} 46... exd5 {[%clk 0:02:21.2]} 47.
Rd3 {[%clk 0:01:53.5]} 47... Re4+ {[%clk 0:02:14.7]} 48. Re3 {[%clk 0:01:53.9]}
48... Kc6 {[%clk 0:01:54.5]} 49. Kd2 {[%clk 0:01:53.8]} 49... Rd4+ {[%clk
0:01:53.1]} 50. Rd3 {[%clk 0:01:54.8]} 50... Rb4 {[%clk 0:01:54.3]} 51. Re3
{[%clk 0:01:48.9]} 51... Kd7 {[%clk 0:01:53.7]} 52. Rc3 {[%clk 0:01:49.7]} 52...
Rb5 {[%clk 0:01:53.7]} 53. Kc2 {[%clk 0:01:39.8]} 53... Ke6 {[%clk 0:01:53.9]}
54. Rd3 {[%clk 0:01:40.9]} 54... d4 {[%clk 0:01:54.9]} 55. Rd1 {[%clk
0:01:39.2]} 55... Kd5 {[%clk 0:01:55.9]} 56. Ra1 {[%clk 0:01:40.2]} 56... Rb6
{[%clk 0:01:50.1]} 57. Ra8 {[%clk 0:01:40.3]} 57... Ke4 {[%clk 0:01:48]} 58. Rd8
{[%clk 0:01:36.5]} 58... Ke3 {[%clk 0:01:48.4]} 59. Rd5 {[%clk 0:01:36.6]} 59...
Rc6 {[%clk 0:01:46.9]} 60. Rd6 {[%clk 0:01:30.1]} 60... Rc7 {[%clk 0:01:37.3]}
61. Rd5 {[%clk 0:00:46.7]} 61... c4 {[%clk 0:01:34.2]} 62. b4 {[%clk 0:00:34.6]}
62... Re7 {[%clk 0:00:23.8]} 63. b5 {[%clk 0:00:33.4]} 63... Re6 {[%clk
0:00:20.5]} 64. Rd8 {[%clk 0:00:25.7]} 64... c3 {[%clk 0:00:18.4]} 65. Rd5
{[%clk 0:00:21.1]} 65... Rb6 {[%clk 0:00:16.6]} 66. Kb3 {[%clk 0:00:16.8]} 66...
Re6 {[%clk 0:00:13.2]} 67. Kc2 {[%clk 0:00:17.4]} 67... Ke4 {[%clk 0:00:13.2]}
68. Rd6 {[%clk 0:00:16]} 68... Re7 {[%clk 0:00:10.5]} 69. b6 {[%clk 0:00:17.4]}
69... Rb7 {[%clk 0:00:11.2]} 70. e6 {[%clk 0:00:17.3]} 70... Ke3 {[%clk
0:00:11.9]} 71. Kb3 {[%clk 0:00:17.6]} 71... Kd3 {[%clk 0:00:12.3]} 72. Rc6
{[%clk 0:00:08.4]} 72... Kd2 {[%clk 0:00:13.1]} 73. Kc4 {[%clk 0:00:08.9]} 73...
c2 {[%clk 0:00:12.9]} 74. Kxd4 {[%clk 0:00:09.8]} 74... Rxb6 {[%clk 0:00:14.4]}
75. Rxc2+ {[%clk 0:00:09.8]} 75... Kxc2 {[%clk 0:00:15.6]} 76. Ke5 {[%clk
0:00:11.7]} 76... Kd3 {[%clk 0:00:16.7]} 77. e7 {[%clk 0:00:13.1]} 77... Rb8
{[%clk 0:00:17.9]} 78. Kf6 {[%clk 0:00:14.6]} 78... Ke4 {[%clk 0:00:18]} 79.
Kxg6 {[%clk 0:00:15.6]} 79... Re8 {[%clk 0:00:15.9]} 80. Kf7 {[%clk 0:00:15.2]}
80... Rb8 {[%clk 0:00:17.5]} 81. Kg6 {[%clk 0:00:15.4]} 81... Kf3 {[%clk
0:00:18.1]} 82. Kxf5 {[%clk 0:00:16.1]} 82... Kxg3 {[%clk 0:00:19.8]} 83. Ke5
{[%clk 0:00:17.6]} 83... Re8 {[%clk 0:00:19.2]} 84. f5 {[%clk 0:00:14.9]} 84...
Rxe7+ {[%clk 0:00:19.9]} 85. Kf6 {[%clk 0:00:16.4]} 85... Ra7 {[%clk 0:00:21.1]}
86. Kg5 {[%clk 0:00:17.8]} 86... Ra5 {[%clk 0:00:21.6]} 87. Kg6 {[%clk
0:00:18.4]} 87... Kxh4 {[%clk 0:00:22.6]} 0-1